bitfinex-derivatives/quotes_ETHF0:USTF0_20260208
["timestamp","ask_amount","ask_price","bid_price","bid_amount"]
[1770593178418,1.04245131,2095.2,2093.5,6.08003334]
[1770593179220,0.82080872,2094.9,2093.5,6.08003334]
[1770593179917,0.23886,2094.7,2093.5,6.08003334]
[1770593180126,0.80663867,2094.6,2093.5,6.08003334]
[1770593180525,0.82901574,2094.4,2093.5,0.0033859]
[1770593180925,0.82901574,2094.4,2093.5,6.06640527]
[1770593181229,1.06790574,2094.4,2093.5,6.06640527]
[1770593181415,44.64364113,2094.5,2093.2,6.06321074]
[1770593181416,1.067543,2094.3,2093.2,6.06321074]
[1770593181617,5.83259054,2094.2,2093.2,6.06321074]
[1770593181918,0.81467054,2093.3,2091.9,6.06321074]
[1770593182118,0.81467054,2092.9,2091.9,6.06321074]
[1770593182316,0.82028737,2092.9,2091.9,6.06713582]
[1770593182525,40.8,2092.8,2091.9,6.06713582]
[1770593183414,41.57674722,2092.8,2091.9,6.06713582]
[1770593183823,40.8,2092.8,2091.9,6.06713582]
[1770593185124,0.00561683,2092.9,2091.9,6.06713582]
[1770593188029,40.8,2093.5,2091.9,6.06713582]
[1770593188228,0.23896,2093.8,2091.9,6.06713582]
[1770593188418,0.95760733,2093.8,2091.9,6.06713582]
[1770593188821,40.8,2093.7,2091.9,6.06713582]
[1770593189623,0.24278213,2093.8,2091.9,6.06713582]
[1770593190034,40.8,2093.7,2091.9,6.06713582]
[1770593190632,41.54670707,2093.7,2091.9,6.06713582]
[1770593191828,0.00382213,2093.8,2092.2,6.03703808]
[1770593192935,0.73283315,2093.7,2092.2,6.03703808]
[1770593193137,0.24278213,2093.8,2092.2,6.03703808]
[1770593193831,0.96237784,2093.8,2092.2,6.03703808]
[1770593194038,0.71959571,2093.7,2092.2,6.03703808]
[1770593195040,45.579,2094.2,2092.2,6.03703808]
[1770593195041,40.8,2094.2,2092.2,6.03703808]
[1770593195238,0.93423746,2094.8,2092.7,6.03505007]
[1770593195444,0.93423746,2094.8,2092.8,6.03505007]
[1770593195635,0.93423746,2094.8,2092.9,6.03505007]
[1770593196137,0.93769242,2094.8,2092.9,6.03505007]
[1770593196441,0.00345496,2094.8,2093.1,9.04259184]
[1770593196630,0.00345496,2094.8,2093.2,6.02982702]
[1770593196832,0.00345496,2094.8,2093.4,6.02982702]
[1770593197033,0.00345496,2094.8,2093.4,6.03338854]
[1770593197840,0.67149189,2095.6,2093.6,6.03002697]
[1770593198336,0.61663409,2095.2,2093.6,6.03002697]
[1770593198540,5.59138592,2095.9,2093.6,6.03002697]
[1770593198730,0.60426484,2095.8,2094.0,6.05745587]
[1770593198930,0.60849763,2095.8,2094.0,6.05745587]
[1770593199132,0.60391488,2095.7,2094.0,6.05745587]
[1770593199337,0.84269488,2095.4,2094.0,6.05745587]
[1770593199734,0.59187422,2095.3,2094.0,6.05745587]
[1770593199944,0.23878,2095.4,2094.0,6.05745587]
[1770593200537,0.59187422,2095.6,2094.0,6.05745587]
[1770593200740,40.80423279,2095.8,2094.0,6.05745587]
[1770593201840,0.00423279,2095.8,2094.0,6.05745587]
[1770593202035,0.00423279,2095.8,2094.2,6.06338544]
[1770593203846,0.52732827,2095.8,2094.2,6.06338544]
[1770593204947,0.76605827,2095.8,2094.2,6.06338544]
[1770593205142,0.52923327,2095.6,2094.2,6.06338544]
[1770593205345,0.52831506,2095.1,2093.9,6.05807393]
[1770593206652,0.50175122,2095.5,2093.9,6.05807393]
[1770593207151,0.50175122,2095.7,2093.9,6.05807393]
[1770593207349,5.28041449,2095.6,2093.9,6.05807393]
[1770593207945,0.24297279,2095.8,2093.9,6.05807393]
[1770593208247,5.51184238,2095.8,2093.9,6.05807393]
[1770593209149,0.40227438,2095.3,2093.9,6.05807393]
[1770593211150,5.18127438,2095.3,2093.9,6.05807393]
[1770593211745,0.23878,2095.4,2093.9,6.05807393]
[1770593212151,0.6086925,2095.4,2093.9,6.05807393]
[1770593212655,0.23878,2095.4,2093.9,6.05807393]
[1770593212950,0.60730905,2095.4,2093.9,6.05807393]
[1770593214350,0.00423279,2095.8,2093.9,6.05807393]
[1770593215343,42.50538446,2096.4,2094.4,6.08024704]
[1770593215545,5.59138592,2096.6,2094.4,6.08024704]
[1770593215546,0.36056189,2095.8,2094.4,6.08024704]
[1770593215750,0.23877,2095.5,2094.4,6.08024704]
[1770593216151,0.58840167,2095.5,2094.4,6.08024704]
[1770593216347,0.59291558,2095.5,2094.4,6.08024704]
[1770593216552,0.30211565,2095.3,2094.4,6.08024704]
[1770593216951,0.54090565,2095.3,2094.4,6.08024704]
[1770593217156,0.23884,2094.9,2094.1,6.05807393]
[1770593217553,1.53761283,2095.4,2094.1,6.05807393]
[1770593218049,0.00451391,2095.5,2094.1,6.05807393]
[1770593219558,1.88618155,2095.2,2094.1,6.05807393]
[1770593219854,0.00451391,2095.5,2094.1,6.05807393]
[1770593220955,30.877,2096.2,2094.2,0.23891]
[1770593221257,43.82114953,2096.7,2094.7,6.05807393]
[1770593221560,43.82114953,2096.7,2094.8,6.05807393]
[1770593221561,40.8,2096.6,2094.8,6.05807393]
[1770593221759,42.14482257,2096.8,2094.9,6.29690393]
[1770593222066,0.23855,2097.4,2095.5,6.05807393]
[1770593222356,0.23855,2097.4,2095.6,6.05807393]
[1770593222757,1.8921757,2097.4,2095.6,6.05807393]
[1770593223061,40.8,2097.6,2095.6,6.05807393]
[1770593223263,0.00554189,2097.4,2095.8,6.05807393]
[1770593223452,1.65898152,2097.4,2095.8,6.05807393]
[1770593223653,42.45898152,2097.4,2095.8,6.05807393]
[1770593223857,40.80554189,2097.4,2095.8,6.05807393]
[1770593224360,1.72938349,2097.3,2095.8,6.05807393]
[1770593224860,0.23856,2097.3,2095.8,6.05807393]
[1770593226060,1.47706264,2097.3,2095.8,6.05807393]
[1770593226254,1.71563264,2097.2,2095.8,6.05807393]
[1770593226948,0.23857,2097.2,2095.8,6.05807393]
[1770593227257,1.49316805,2097.3,2095.8,6.05807393]
[1770593227460,40.80554189,2097.4,2095.8,6.05807393]
[1770593229456,0.00554189,2097.4,2095.8,6.05807393]
[1770593230859,1.59529367,2097.4,2095.8,6.05807393]
[1770593231056,1.58982178,2096.8,2095.8,6.05807393]
[1770593231562,0.23862,2096.8,2095.8,6.05807393]
[1770593231762,42.15036446,2097.4,2095.8,6.05807393]
[1770593231763,1.58304851,2097.3,2095.8,6.05807393]
[1770593232965,0.23856,2097.3,2095.8,6.05807393]
[1770593233260,1.6444528,2097.1,2095.8,6.05807393]
[1770593233461,1.6444628,2097.0,2095.8,6.05807393]
[1770593233661,1.3992563,2096.9,2095.8,6.05807393]
[1770593234163,1.3992563,2096.5,2095.0,6.05807393]
[1770593234761,32.23539713,2096.8,2095.0,6.05807393]
[1770593235763,30.857,2096.8,2095.0,6.05807393]
[1770593236667,1.5692056,2097.0,2095.0,6.05807393]
[1770593236867,1.3306156,2096.6,2095.0,6.05807393]
[1770593237065,1.3306156,2096.4,2095.0,6.05807393]
[1770593237965,1.32411469,2096.2,2095.0,6.05807393]
[1770593238168,1.56283469,2096.0,2095.0,6.05807393]
[1770593238369,40.8,2095.9,2095.0,6.05807393]
[1770593238573,42.32846475,2095.9,2095.0,6.05807393]
[1770593238867,1.52473634,2095.8,2094.9,0.00619412]
[1770593239069,1.76346634,2095.8,2094.9,0.00619412]
[1770593239658,1.76346634,2095.8,2094.9,6.14239229]
[1770593239865,40.80372841,2095.9,2094.9,6.14239229]
[1770593240264,42.48100323,2095.9,2094.9,6.14239229]
[1770593240466,0.00372841,2095.9,2094.9,6.14239229]
[1770593241068,1.67457814,2095.9,2094.9,6.14239229]
[1770593241674,0.00372841,2095.9,2094.9,6.14239229]
[1770593242579,1.58704551,2095.9,2094.9,6.14239229]
[1770593243471,43.97058808,2095.9,2094.9,0.00619412]
[1770593243666,1.81547574,2095.8,2094.9,0.00619412]
[1770593243976,1.57674574,2095.7,2094.9,0.00619412]
[1770593245475,42.38355257,2095.8,2094.9,6.14239229]
[1770593245775,1.75400991,2095.8,2094.9,6.14239229]
[1770593246070,1.75400991,2095.8,2094.9,0.00619412]
[1770593246663,42.14855098,2095.9,2094.9,0.00619412]
[1770593246664,1.53411029,2095.6,2094.9,0.00619412]
[1770593246874,1.77287029,2095.6,2094.4,6.13619817]
[1770593247878,1.77287029,2095.6,2094.4,6.14004744]
[1770593249476,0.23876,2095.6,2094.4,6.14004744]
[1770593249968,1.5151041,2095.9,2094.4,6.14004744]
[1770593250175,0.00372841,2095.9,2094.4,6.14004744]
[1770593251178,1.76077743,2095.7,2094.4,6.14004744]
[1770593251875,42.14855098,2095.9,2094.4,6.14004744]
[1770593251876,1.7544285,2095.4,2094.4,6.14004744]
[1770593252075,30.868,2095.3,2094.4,6.14004744]
[1770593259685,30.871,2095.8,2094.4,6.14004744]
[1770593260675,1.54296255,2095.4,2094.4,6.14004744]
[1770593262386,0.23878,2095.4,2094.4,6.14004744]
[1770593262688,43.46714485,2095.6,2094.4,6.14004744]
[1770593263482,1.32232228,2095.6,2094.4,6.14004744]
[1770593264187,43.46714485,2095.6,2094.4,6.14004744]
[1770593264593,1.32232228,2095.6,2094.4,6.14004744]
[1770593264792,43.46714485,2095.6,2094.4,6.14004744]
[1770593265184,1.25728575,2095.3,2094.4,6.14004744]
[1770593265386,42.14482257,2095.4,2094.4,6.14004744]
[1770593265585,43.40210832,2095.4,2094.4,6.14004744]
[1770593265890,43.40187616,2095.3,2094.4,6.14004744]
[1770593266190,42.14482257,2095.6,2094.4,6.14004744]
[1770593266586,43.40235522,2095.7,2094.4,6.14004744]
[1770593266782,1.25169491,2095.5,2094.4,6.14004744]
[1770593266987,42.14482257,2095.5,2094.4,6.14004744]
[1770593268084,6.86782118,2095.6,2094.4,6.14004744]
[1770593268085,42.14482257,2095.4,2094.4,6.14004744]
[1770593268285,42.14482257,2095.5,2094.4,6.14004744]
[1770593270095,42.14482257,2095.4,2094.4,6.14004744]
[1770593270799,1.21749221,2095.2,2094.4,6.14004744]
[1770593270994,30.872,2095.1,2094.4,6.14004744]
[1770593271291,74.23420473,2095.1,2094.4,6.14004744]
[1770593271495,42.14482257,2095.0,2094.4,6.14004744]
[1770593271694,43.35647254,2095.0,2094.4,0.00384927]
[1770593272695,42.14482257,2095.0,2094.4,6.03849363]
[1770593274090,45.59858016,2094.9,2094.4,3.73594947]
[1770593274293,45.59858016,2094.9,2093.7,2.84996876]
[1770593274294,45.59858016,2094.9,2093.8,6.03464436]
[1770593274701,42.14482257,2094.9,2093.8,6.03464436]
[1770593275000,42.14482257,2094.9,2093.8,6.03880184]
[1770593275299,3.37387872,2094.8,2093.8,6.03880184]
[1770593275601,45.51870129,2094.7,2093.8,6.03880184]
[1770593275995,42.14482257,2094.8,2093.8,6.03880184]
[1770593276200,5.61612627,2095.0,2093.8,6.03880184]
[1770593276201,30.874,2094.7,2093.8,6.03880184]
[1770593277094,30.874,2094.7,2093.9,6.03464436]
[1770593277299,34.37390386,2094.7,2093.9,6.03464436]
[1770593277800,30.874,2094.7,2093.9,6.03464436]
[1770593278595,34.38457528,2094.7,2093.9,6.03464436]
[1770593278789,30.874,2094.7,2093.9,6.03464436]
[1770593278990,3.51057528,2094.6,2093.9,6.03464436]
[1770593279391,3.51057528,2094.6,2093.8,0.00415748]
[1770593279796,3.51057528,2094.6,2093.8,6.03880184]
[1770593280502,3.74944528,2094.6,2093.8,0.00415748]
[1770593280699,3.48332302,2094.4,2093.4,6.03464436]
[1770593280999,5.88772473,2094.0,2093.2,6.03464436]
[1770593281203,2.73771733,2094.1,2093.2,6.03464436]
[1770593281398,36.76472473,2094.2,2093.2,6.03464436]
[1770593281604,5.88772473,2094.1,2093.2,6.0398456]
[1770593281798,0.00368307,2094.2,2093.2,6.0398456]
[1770593282804,48.0325473,2094.8,2093.3,8.88461312]
[1770593283005,5.88772473,2094.6,2093.5,6.03464436]
[1770593283902,5.89331048,2094.6,2093.5,6.03464436]
[1770593284203,0.00558575,2094.6,2093.5,6.03464436]
[1770593285000,5.89331048,2094.6,2093.5,6.03464436]
[1770593285305,5.89331048,2094.6,2093.3,8.88461312]
[1770593285605,5.88772473,2094.2,2093.2,6.0398456]
[1770593286008,5.88772473,2094.4,2093.2,6.0398456]
[1770593287708,48.03813305,2094.6,2093.2,6.0398456]
[1770593287910,5.89331048,2094.6,2093.2,6.0398456]
[1770593289610,5.88772473,2094.5,2093.2,6.0398456]
[1770593292314,0.00558575,2094.6,2093.3,6.03464436]
[1770593293212,5.89331048,2094.6,2093.3,6.03464436]
[1770593293612,5.88772473,2094.0,2093.2,0.00520124]
[1770593293911,5.88772473,2093.8,2093.2,0.00520124]
[1770593295116,5.88772473,2093.8,2093.2,5.91576175]
[1770593295308,2.73771733,2094.1,2093.2,5.91576175]
[1770593295309,8.45326807,2094.1,2093.2,5.91576175]
[1770593295507,47.86037331,2094.3,2093.2,5.91576175]
[1770593295814,5.71555074,2094.0,2093.2,5.91576175]
[1770593296514,42.14482257,2094.3,2093.2,5.91576175]
[1770593296709,78.98566654,2094.5,2093.2,5.91576175]
[1770593297114,36.84084397,2094.5,2093.2,5.91576175]
[1770593297414,30.885,2094.5,2093.3,6.09639499]
[1770593298107,0.00558575,2094.6,2093.3,6.09639499]
[1770593298307,12.85965887,2095.2,2093.2,2.85517]
[1770593298308,5.95584397,2095.2,2093.8,6.09639499]
[1770593298514,5.95584397,2095.1,2093.8,6.09639499]
[1770593298707,5.95584397,2095.1,2093.9,6.09639499]
[1770593299210,5.95584397,2094.9,2093.9,6.09639499]
[1770593299815,30.885,2094.8,2093.7,6.09639499]
[1770593300011,5.95584397,2094.7,2093.7,6.09639499]
[1770593300805,42.14482257,2095.0,2093.7,6.09639499]
[1770593301115,0.00413091,2095.1,2094.3,6.09639499]
[1770593302702,5.95997488,2095.1,2094.3,6.09639499]
[1770593302906,5.95997488,2095.1,2093.9,6.09639499]
[1770593304312,0.00413091,2095.1,2094.1,6.09639499]
[1770593304619,5.95584397,2095.6,2094.0,7.14336549]
[1770593304620,5.95584397,2095.6,2094.2,6.09639499]
[1770593305510,5.96103763,2095.6,2094.2,6.09639499]
[1770593305916,0.00519366,2095.6,2094.2,8.83411232]
[1770593306111,0.00519366,2095.6,2094.4,6.09639499]
[1770593306708,5.96103763,2095.6,2094.4,6.09639499]
[1770593307420,5.95584397,2095.4,2094.4,6.09639499]
[1770593307622,5.95584397,2095.4,2094.2,6.09639499]
[1770593308115,46.41612627,2095.5,2093.5,2.84996876]
[1770593308116,5.95584397,2095.2,2093.5,2.84996876]
[1770593308318,2.73771733,2095.3,2093.5,6.09639499]
[1770593308319,5.95584397,2094.8,2093.5,6.09639499]
[1770593309720,5.95584397,2094.4,2093.2,6.10159623]
[1770593310215,5.95584397,2094.4,2093.2,0.00520124]
[1770593311419,5.95584397,2094.3,2093.2,0.00520124]
[1770593312118,5.95584397,2094.3,2092.4,2.84996876]
[1770593312317,5.95584397,2093.9,2092.5,6.09639499]
[1770593312623,2.73771733,2094.0,2092.5,6.09639499]
[1770593312624,5.95584397,2093.7,2092.5,6.09639499]
[1770593313026,5.95584397,2094.3,2092.5,6.09639499]
[1770593313317,5.96135246,2094.3,2092.8,6.09639499]
[1770593313516,5.96135246,2094.3,2092.8,8.94636375]
[1770593313717,0.00550849,2094.3,2093.0,6.09639499]
[1770593313925,0.00550849,2094.3,2093.0,8.94636375]
[1770593314217,0.00550849,2094.3,2093.1,10.38135624]
[1770593314524,0.00550849,2094.3,2093.2,6.09639499]
[1770593317028,5.96135246,2094.3,2093.2,6.09639499]
[1770593318528,0.00550849,2094.3,2093.2,6.09639499]
[1770593319121,5.96135246,2094.3,2093.2,6.09639499]
[1770593319326,0.00550849,2094.3,2093.2,6.09639499]
[1770593322029,5.95584397,2094.1,2093.0,6.09639499]
[1770593323032,5.95584397,2093.9,2092.6,6.09639499]
[1770593324130,5.95584397,2093.8,2092.6,6.09639499]
[1770593324436,5.95584397,2093.7,2092.6,6.09639499]
[1770593324630,5.95584397,2093.5,2092.5,0.00591114]
[1770593324936,5.95584397,2093.4,2092.2,6.09639499]
[1770593325736,6.25289249,2093.3,2092.2,6.10073772]
[1770593326824,6.25289249,2093.5,2092.2,6.10073772]
[1770593328828,6.25289249,2093.9,2092.3,6.55749768]
[1770593329031,6.25289249,2093.9,2092.4,6.19223969]
[1770593330134,6.25289249,2093.9,2092.6,6.19223969]
[1770593330529,6.25289249,2093.6,2092.6,6.19223969]
[1770593331331,6.25289249,2094.0,2092.6,6.19223969]
[1770593333332,6.25289249,2093.9,2092.4,6.19223969]
[1770593333536,6.25289249,2093.6,2092.4,6.19223969]
[1770593333737,6.25289249,2093.5,2092.4,6.19223969]
[1770593334632,6.25289249,2093.7,2092.4,6.19223969]
[1770593335253,6.25289249,2094.2,2092.6,6.19223969]
[1770593335435,6.25289249,2094.2,2092.8,6.19223969]
[1770593335736,6.25289249,2094.2,2093.0,6.19223969]
[1770593336134,6.25289249,2094.7,2093.3,6.19223969]
[1770593336328,6.25289249,2094.7,2093.4,6.19223969]
[1770593337140,6.25860702,2094.7,2093.4,6.19223969]
[1770593339728,0.00571453,2094.7,2093.5,4.28489578]
[1770593339933,6.25860702,2094.7,2093.6,6.19223969]
[1770593341029,6.49746702,2094.7,2093.2,6.19223969]
[1770593341228,6.25289249,2094.4,2093.2,6.19223969]
[1770593341832,6.25289249,2094.6,2093.2,6.19223969]
[1770593347844,0.00571453,2094.7,2093.2,6.19223969]
[1770593348049,6.25860702,2094.7,2093.4,6.19223969]
[1770593350847,0.23892,2094.2,2093.4,6.19223969]
[1770593351055,6.25289249,2094.1,2093.4,6.19223969]
[1770593352252,6.25289249,2094.1,2092.9,6.19223969]
[1770593357257,5.8607008,2094.7,2093.1,6.0597705]
[1770593357566,5.736719,2094.6,2093.1,6.0597705]
[1770593358156,5.736719,2094.6,2093.3,6.0597705]
[1770593359360,0.00571453,2094.7,2093.4,13.18879684]
[1770593359664,0.00571453,2094.7,2093.6,6.0597705]
[1770593360965,5.74243353,2094.7,2093.6,6.0597705]
[1770593361763,0.00571453,2094.7,2093.6,6.0597705]
[1770593361966,5.74243353,2094.7,2093.8,6.0597705]
[1770593362168,5.74243353,2094.7,2093.8,6.06356633]
[1770593362363,0.00571453,2094.7,2093.8,6.06356633]
[1770593362564,5.736719,2095.2,2093.9,6.0597705]
[1770593363764,5.74244706,2095.2,2093.9,6.0597705]
[1770593365160,5.736719,2095.0,2093.9,6.0597705]
[1770593366974,5.74244706,2095.2,2093.9,6.0597705]
[1770593367266,0.00572806,2095.2,2093.9,6.2987105]
[1770593367473,0.00572806,2095.2,2094.1,6.0597705]
[1770593368662,5.74244706,2095.2,2094.1,6.0597705]
[1770593368971,0.00572806,2095.2,2094.1,6.0597705]
[1770593369271,0.00572806,2095.2,2094.1,8.90973926]
[1770593369469,0.00572806,2095.2,2094.3,6.0597705]
[1770593369670,5.736719,2095.6,2094.3,6.0597705]
[1770593369872,5.736719,2096.1,2094.5,6.0597705]
[1770593370064,5.736719,2096.3,2095.0,6.0597705]
[1770593370369,5.736719,2096.8,2095.0,6.0597705]
[1770593370570,5.74055123,2096.8,2095.2,6.0597705]
[1770593370975,5.74055123,2096.8,2095.4,6.0597705]
[1770593371164,5.74055123,2096.8,2095.4,6.06362922]
[1770593374568,5.736719,2096.6,2095.4,6.06362922]
[1770593374871,5.736719,2096.6,2095.4,0.00385872]
[1770593375862,5.736719,2095.9,2094.7,6.0597705]
[1770593376062,5.736719,2095.9,2094.5,6.0597705]
[1770593376269,5.736719,2095.7,2094.5,6.0597705]
[1770593376769,5.736719,2095.4,2093.2,6.0597705]
[1770593377174,5.736719,2095.4,2093.3,6.0597705]
[1770593377669,5.736719,2095.2,2093.3,6.0597705]
[1770593377872,5.74263395,2095.2,2093.3,6.06398918]
[1770593378570,5.98143395,2095.2,2093.3,6.06398918]
[1770593381073,5.98143395,2095.2,2093.5,6.0597705]
[1770593383170,5.736719,2095.0,2093.5,6.0597705]
[1770593383367,5.736719,2095.0,2093.3,0.00421868]
[1770593383368,5.736719,2094.5,2093.3,6.06398918]
[1770593383577,5.975599,2094.5,2093.3,0.00421868]
[1770593383769,5.736719,2094.2,2093.3,0.00421868]
[1770593383974,5.736719,2094.2,2092.6,6.0597705]
[1770593384368,5.736719,2093.8,2092.6,6.0597705]
[1770593384874,5.975679,2093.8,2092.6,6.0635708]
[1770593385673,5.975679,2093.8,2092.6,0.0038003]
[1770593386476,5.975679,2093.8,2092.6,5.70102782]
[1770593386976,5.736719,2093.8,2092.6,5.70102782]
[1770593388883,6.12000864,2093.7,2092.6,5.70102782]
[1770593389084,6.12441079,2093.7,2092.6,5.70102782]
[1770593390388,6.12000864,2093.5,2092.6,5.70102782]
[1770593391783,0.00440215,2093.7,2092.6,5.70102782]
[1770593393286,6.12441079,2093.7,2092.6,5.70102782]
[1770593394383,6.12000864,2093.6,2092.6,5.70102782]
[1770593395891,0.00440215,2093.7,2092.6,5.70102782]
[1770593397388,6.12000864,2094.4,2092.8,5.69722752]
[1770593397788,6.12000864,2094.4,2093.0,5.69722752]
[1770593398382,6.36348306,2094.4,2093.0,5.69722752]
[1770593399896,6.36348306,2094.4,2092.6,0.0038003]
[1770593399897,6.12000864,2094.0,2092.6,0.0038003]
[1770593400189,6.12000864,2093.0,2091.3,5.69722752]
[1770593400391,2.98073859,2093.1,2091.3,5.69722752]
[1770593400392,6.12000864,2092.6,2091.3,5.69722752]
[1770593400590,6.12000864,2091.8,2090.1,5.69722752]
[1770593400786,6.12000864,2091.4,2090.1,5.69722752]
[1770593400992,6.12000864,2091.0,2089.8,5.69722752]
[1770593401194,0.00417033,2091.4,2089.5,5.69722752]
[1770593401195,8.86170723,2090.3,2089.5,5.69722752]
[1770593401492,6.12000864,2090.6,2089.5,5.69722752]
[1770593402088,0.00417033,2091.4,2089.7,5.69722752]
[1770593402294,6.12417897,2091.4,2089.7,5.69722752]
[1770593402489,0.00417033,2091.4,2089.9,5.69722752]
[1770593402895,0.00417033,2091.4,2090.1,5.69722752]
[1770593403284,6.12417897,2091.4,2090.3,5.69722752]
[1770593403794,0.00417033,2091.4,2090.3,5.69722752]
[1770593404988,6.12417897,2091.4,2090.3,5.69722752]
[1770593405688,6.12000864,2092.0,2090.5,5.69722752]
[1770593405894,6.12000864,2092.4,2090.7,5.69722752]
[1770593406296,6.12000864,2092.4,2090.9,5.69722752]
[1770593406693,0.00464206,2092.4,2091.1,5.69722752]
[1770593406984,0.00464206,2092.4,2091.2,6.32790403]
[1770593407192,0.00464206,2092.4,2091.3,5.69722752]
[1770593407392,0.23901,2093.4,2091.3,5.69722752]
[1770593407393,6.12000864,2093.2,2091.3,5.69722752]
[1770593407592,6.12000864,2093.2,2091.5,5.69722752]
[1770593407989,6.12000864,2093.2,2091.7,5.69722752]
[1770593408185,6.12000864,2093.9,2091.7,5.69722752]
[1770593408390,6.12621293,2093.9,2091.9,5.69722752]
[1770593408792,0.00620429,2093.9,2092.1,5.69722752]
[1770593408997,6.12000864,2094.9,2092.7,5.69722752]
[1770593409390,6.12000864,2094.9,2092.9,5.69722752]
[1770593409697,6.12000864,2094.9,2093.0,6.17863849]
[1770593409896,3.84138603,2094.8,2093.1,5.69722752]
[1770593410092,6.12000864,2094.7,2093.1,5.69722752]
[1770593410294,6.12000864,2094.6,2093.1,5.69722752]
[1770593410493,6.12000864,2094.4,2093.0,0.00523521]
[1770593410693,6.12000864,2094.2,2093.0,0.00523521]
[1770593411291,6.12000864,2093.7,2091.6,5.69722752]
[1770593411694,6.12000864,2093.7,2091.8,5.69722752]
[1770593411998,6.12000864,2093.7,2092.0,5.69722752]
[1770593412191,6.12000864,2093.7,2092.0,5.70258162]
[1770593414392,6.12000864,2093.0,2091.4,5.69722752]
[1770593414592,6.12000864,2092.7,2091.1,5.69722752]
[1770593414901,6.12000864,2092.5,2090.3,5.69722752]
[1770593415392,6.12000864,2092.5,2090.3,5.70267014]
[1770593415591,5.93704028,2092.2,2090.3,5.70267014]
[1770593415795,5.69790028,2092.0,2090.3,5.70267014]
[1770593416691,5.80378617,2091.8,2090.3,5.70267014]
[1770593416895,6.04297617,2091.8,2090.3,5.70267014]
[1770593420000,6.04302617,2091.4,2089.7,5.47590788]
[1770593420389,5.80378617,2091.4,2089.7,5.47590788]
[1770593420595,5.80378617,2091.2,2089.7,5.47590788]
[1770593420795,5.80378617,2090.8,2089.4,5.47590788]
[1770593420995,5.80378617,2090.7,2089.4,0.00483296]
[1770593421191,5.80378617,2090.7,2089.4,5.48074084]
[1770593421395,5.80378617,2090.5,2089.4,5.48074084]
[1770593421898,5.80835069,2090.8,2089.4,5.48074084]
[1770593422501,5.80378617,2090.7,2089.4,5.48074084]
[1770593423493,5.80378617,2090.7,2089.4,0.00483296]
[1770593423897,6.04309617,2090.7,2089.4,0.00483296]
[1770593424092,6.04309617,2090.7,2089.4,5.48074084]
[1770593424298,9.8844822,2090.7,2089.4,0.00483296]
[1770593424500,5.80378617,2090.6,2089.4,5.48074084]
[1770593428004,5.80378617,2090.6,2088.3,5.47590788]
[1770593428199,5.80378617,2090.1,2088.3,5.47590788]
[1770593428406,5.80378617,2090.4,2088.6,5.47590788]
[1770593428808,5.80378617,2090.4,2088.8,5.47590788]
[1770593429011,5.80378617,2090.7,2088.8,5.48198185]
[1770593429302,0.00456452,2090.8,2089.2,5.47590788]
[1770593429708,0.00456452,2090.8,2089.4,5.47590788]
[1770593430109,5.80835069,2090.8,2089.4,5.47590788]
[1770593431507,5.80378617,2090.7,2089.4,5.47590788]
[1770593432206,6.04310617,2090.7,2089.4,5.47590788]
[1770593432513,5.80378617,2090.5,2089.1,5.47590788]
[1770593432803,5.80378617,2090.2,2088.8,5.48198185]
[1770593433710,5.80378617,2089.1,2087.3,5.47590788]
[1770593434205,5.80378617,2089.1,2087.5,5.47590788]
[1770593434609,0.00577543,2089.1,2087.5,5.48195035]
[1770593434805,46.60378617,2090.0,2087.9,5.47590788]
[1770593435010,5.80378617,2090.3,2088.2,5.47590788]
[1770593435205,5.80378617,2090.3,2088.2,5.71550788]
[1770593435402,5.80378617,2090.3,2088.4,5.47590788]
[1770593435713,5.80378617,2090.3,2088.6,5.47590788]
[1770593435907,5.80929076,2090.3,2088.6,5.47590788]
[1770593436107,0.00550459,2090.3,2088.8,5.47590788]
[1770593436607,5.80929076,2090.3,2088.8,5.47590788]
[1770593438509,5.80378617,2090.9,2089.0,5.47590788]
[1770593439007,5.80378617,2090.8,2089.0,5.47590788]
[1770593439610,5.80742021,2090.8,2089.0,5.48141206]
[1770593440412,5.80378617,2090.1,2089.0,0.00550418]
[1770593440714,5.80378617,2090.0,2088.6,5.47590788]
[1770593441813,5.80378617,2090.0,2088.6,5.4807708]
[1770593442208,5.80378617,2090.0,2088.6,0.00486292]
[1770593442410,5.80378617,2089.5,2088.6,5.4807708]
[1770593442613,5.80378617,2089.2,2087.5,5.47590788]
[1770593443514,5.80962978,2089.2,2087.5,5.48109208]
[1770593443918,5.80962978,2089.2,2087.3,5.47590788]
[1770593443919,5.80378617,2088.5,2087.3,5.47590788]
[1770593445011,5.80378617,2088.5,2087.3,5.48133705]
[1770593448109,5.80378617,2088.5,2087.3,0.00542917]
[1770593448311,5.80378617,2088.5,2086.3,5.52226993]
[1770593448508,5.60126732,2087.4,2086.2,5.52226993]
[1770593448711,5.60126732,2087.4,2085.2,4.13934088]
[1770593448712,5.60126732,2087.3,2085.4,5.52226993]
[1770593449415,5.60126732,2087.2,2085.4,5.52685616]
[1770593449716,5.60126732,2086.6,2085.4,0.00458623]
[1770593449908,5.60126732,2086.4,2085.4,0.00458623]
[1770593450112,5.60126732,2086.4,2085.0,5.52226993]
[1770593450307,3.84138603,2086.3,2084.2,5.52226993]
[1770593450617,5.60126732,2085.9,2084.2,5.52226993]
[1770593451116,5.60126732,2085.9,2084.2,5.52823067]
[1770593451311,5.60126732,2085.9,2084.3,5.52226993]
[1770593451920,5.60126732,2086.1,2084.5,5.52226993]
[1770593452117,5.60126732,2087.1,2084.5,5.52226993]
[1770593452420,5.60126732,2087.1,2084.7,5.52226993]
[1770593452718,5.60126732,2086.9,2084.7,5.52226993]
[1770593453718,5.60126732,2086.9,2084.9,5.52226993]
[1770593454112,30.65251531,2087.3,2085.1,5.52226993]
[1770593454113,5.60126732,2087.2,2085.1,5.52226993]
[1770593454617,5.60126732,2087.2,2085.3,5.52226993]
[1770593455018,5.60126732,2087.2,2085.5,5.52226993]
[1770593455708,0.00451531,2087.3,2085.5,5.52226993]
[1770593455911,0.00451531,2087.3,2085.7,5.52226993]
[1770593456120,0.00451531,2087.3,2085.7,5.52695671]
[1770593456317,0.00451531,2087.3,2085.9,5.52226993]
[1770593456511,25.806,2088.6,2085.9,5.52226993]
[1770593456716,5.60126732,2088.5,2086.1,5.52226993]
[1770593457216,5.60126732,2089.3,2086.3,5.52226993]
[1770593457422,5.60126732,2089.3,2086.6,5.52226993]
[1770593457618,5.60506881,2089.3,2086.6,5.52226993]
[1770593457814,5.60506881,2089.3,2086.2,4.23428908]
[1770593457815,5.60506881,2089.3,2086.8,5.52226993]
[1770593458217,5.60506881,2089.3,2086.5,2.83801873]
[1770593458218,5.60506881,2089.3,2087.0,5.52226993]
[1770593458611,5.60506881,2089.3,2087.2,5.52226993]
[1770593458817,5.60506881,2089.3,2087.2,5.52569741]
[1770593459016,5.60506881,2089.3,2087.4,5.52226993]
[1770593460625,5.60506881,2089.3,2087.6,5.52226993]
[1770593462119,5.60506881,2089.3,2087.2,0.00342748]
[1770593462319,5.60506881,2089.3,2087.3,5.52226993]
[1770593462719,5.60126732,2089.1,2087.2,0.00342748]